[Event "Championnat d'Europe de Blitz"]
[Date "2024.12.09"]
[White "Zlatkov, Anton"]
[Black "Santos Latasa, Jaime"]
[WhiteElo "2324"]
[BlackElo "2628"]
[Round "6.6"]
[Result "1-0"]
[TimeControl "180+2"]

1. e4 {[%clk 00:03:03]} c5 {[%emt 00:00:02] [%clk 00:03:03]} 2. Nf3 {[%clk
00:03:04]} e6 {[%emt 00:00:01] [%clk 00:03:04]} 3. d4 {[%emt 00:00:02] [%clk
00:03:04]} cxd4 {[%emt 00:00:01] [%clk 00:03:05]} 4. Nxd4 {[%clk 00:03:05]} Nc6
{[%clk 00:03:07]} 5. Nc3 {[%emt 00:00:01] [%clk 00:03:05]} Qc7 {[%clk 00:03:08]}
6. Be3 {[%emt 00:00:12] [%clk 00:02:55]} a6 {[%emt 00:00:01] [%clk 00:03:09]} 7.
Qf3 {[%emt 00:00:04] [%clk 00:02:53]} h5 {[%emt 00:00:01] [%clk 00:03:10]} 8.
Nxc6 {[%emt 00:00:06] [%clk 00:02:49]} Qxc6 {[%emt 00:00:02] [%clk 00:03:10]} 9.
O-O-O {[%emt 00:00:18] [%clk 00:02:33]} b5 {[%emt 00:00:02] [%clk 00:03:10]} 10.
Bd3 {[%clk 00:02:34]} Bb7 {[%emt 00:00:03] [%clk 00:03:10]} 11. Rhe1 {[%emt
00:00:04] [%clk 00:02:31]} Rc8 {[%emt 00:00:16] [%clk 00:02:57]} 12. Kb1 {[%emt
00:00:17] [%clk 00:02:16]} Nf6 {[%emt 00:00:09] [%clk 00:02:49]} 13. Bd4 {[%emt
00:00:24] [%clk 00:01:54]} Be7 {[%emt 00:00:30] [%clk 00:02:20]} 14. Nd5 {[%emt
00:00:28] [%clk 00:01:29]} exd5 {[%emt 00:01:10] [%clk 00:01:12]} 15. exd5
{[%emt 00:00:01] [%clk 00:01:30]} Qxd5 {[%emt 00:00:02] [%clk 00:01:13]} 16.
Bxf6 {[%emt 00:00:10] [%clk 00:01:21]} Qxf3 {[%emt 00:00:04] [%clk 00:01:12]}
17. Rxe7+ {[%emt 00:00:02] [%clk 00:01:20]} Kf8 {[%clk 00:01:13]} 18. gxf3
{[%emt 00:00:02] [%clk 00:01:20]} gxf6 {[%clk 00:01:14]} 19. Rxd7 {[%emt
00:00:04] [%clk 00:01:19]} Bxf3 {[%emt 00:00:02] [%clk 00:01:14]} 20. Re1 {[%emt
00:00:03] [%clk 00:01:18]} Rg8 {[%emt 00:00:07] [%clk 00:01:10]} 21. b4 {[%emt
00:00:08] [%clk 00:01:11]} Re8 {[%emt 00:00:12] [%clk 00:01:00]} 22. Rxe8+
{[%emt 00:00:08] [%clk 00:01:06]} Kxe8 {[%clk 00:01:01]} 23. Ra7 {[%emt
00:00:11] [%clk 00:00:57]} Rg2 {[%emt 00:00:05] [%clk 00:00:57]} 24. Rxa6 {[%emt
00:00:04] [%clk 00:00:55]} Rxh2 {[%emt 00:00:10] [%clk 00:00:50]} 25. Rxf6
{[%emt 00:00:03] [%clk 00:00:54]} Bd5 {[%emt 00:00:18] [%clk 00:00:33]} 26.
Bxb5+ {[%emt 00:00:02] [%clk 00:00:54]} Ke7 {[%emt 00:00:01] [%clk 00:00:34]}
27. Rh6 {[%emt 00:00:20] [%clk 00:00:36]} h4 {[%emt 00:00:05] [%clk 00:00:31]}
28. Bc6 {[%emt 00:00:06] [%clk 00:00:33]} Be6 {[%emt 00:00:11] [%clk 00:00:21]}
29. a4 {[%emt 00:00:04] [%clk 00:00:32]} Kd6 {[%emt 00:00:06] [%clk 00:00:17]}
30. Be4 {[%emt 00:00:08] [%clk 00:00:25]} Ke5 {[%emt 00:00:06] [%clk 00:00:13]}
31. Bc6 {[%emt 00:00:03] [%clk 00:00:24]} Kd6 {[%emt 00:00:03] [%clk 00:00:13]}
32. Be4 {[%emt 00:00:01] [%clk 00:00:24]} Ke5 {[%emt 00:00:01] [%clk 00:00:14]}
33. Bb7 {[%emt 00:00:02] [%clk 00:00:24]} h3 {[%emt 00:00:02] [%clk 00:00:14]}
34. a5 {[%emt 00:00:03] [%clk 00:00:24]} Rxf2 {[%emt 00:00:04] [%clk 00:00:12]}
35. a6 {[%emt 00:00:03] [%clk 00:00:22]} Bf5 {[%emt 00:00:03] [%clk 00:00:11]}
36. Rh5 {[%emt 00:00:07] [%clk 00:00:18]} Kf6 {[%emt 00:00:05] [%clk 00:00:07]}
37. a7 {[%emt 00:00:03] [%clk 00:00:17]} Rxc2 {[%emt 00:00:03] [%clk 00:00:06]}
38. Rxf5+ {[%emt 00:00:01] [%clk 00:00:18]} 1-0

[Site "Europe Echecs"]

[Event "Championnat d'Europe de Blitz"]
[Date "2024.12.09"]
[White "Van Foreest, Jorden"]
[Black "Domingo Nunez, Ruben"]
[WhiteElo "2677"]
[BlackElo "2409"]
[Round "6.7"]
[Result "1-0"]
[TimeControl "180+2"]

1. e4 {[%emt 00:18:27] [%clk 00:03:02]} Nf6 {[%emt 00:00:03] [%clk 00:03:01]} 2.
e5 {[%emt 00:00:02] [%clk 00:03:02]} Nd5 {[%emt 00:00:01] [%clk 00:03:02]} 3. d4
{[%emt 00:00:02] [%clk 00:03:03]} d6 {[%emt 00:00:01] [%clk 00:03:03]} 4. Nf3
{[%emt 00:00:02] [%clk 00:03:02]} dxe5 {[%emt 00:00:01] [%clk 00:03:05]} 5. Nxe5
{[%emt 00:00:02] [%clk 00:03:03]} c6 {[%emt 00:00:01] [%clk 00:03:06]} 6. h3
{[%emt 00:00:03] [%clk 00:03:01]} Nd7 {[%emt 00:00:01] [%clk 00:03:07]} 7. Nf3
{[%clk 00:03:01]} N7f6 {[%emt 00:00:01] [%clk 00:03:08]} 8. Be2 {[%emt 00:00:12]
[%clk 00:02:52]} Bf5 {[%emt 00:00:01] [%clk 00:03:09]} 9. O-O {[%emt 00:00:02]
[%clk 00:02:51]} e6 {[%emt 00:00:02] [%clk 00:03:10]} 10. a3 {[%emt 00:00:02]
[%clk 00:02:51]} Bd6 {[%emt 00:00:01] [%clk 00:03:11]} 11. Re1 {[%emt 00:00:03]
[%clk 00:02:50]} O-O {[%emt 00:00:02] [%clk 00:03:11]} 12. c4 {[%emt 00:00:10]
[%clk 00:02:42]} Ne7 {[%emt 00:00:02] [%clk 00:03:12]} 13. Nc3 {[%emt 00:00:04]
[%clk 00:02:39]} Bg6 {[%emt 00:00:01] [%clk 00:03:13]} 14. Bg5 {[%emt 00:00:15]
[%clk 00:02:26]} Ne4 {[%emt 00:00:16] [%clk 00:02:59]} 15. Bh4 {[%emt 00:00:16]
[%clk 00:02:11]} Nxc3 {[%emt 00:00:41] [%clk 00:02:21]} 16. bxc3 {[%emt
00:00:01] [%clk 00:02:11]} Qc7 {[%emt 00:00:01] [%clk 00:02:23]} 17. c5 {[%emt
00:00:03] [%clk 00:02:11]} Bf4 {[%emt 00:00:01] [%clk 00:02:24]} 18. g3 {[%emt
00:00:11] [%clk 00:02:01]} Bh6 {[%emt 00:00:04] [%clk 00:02:22]} 19. Bxe7 {[%emt
00:00:09] [%clk 00:01:55]} Qxe7 {[%clk 00:02:23]} 20. Bd3 {[%clk 00:01:56]} Bh5
{[%emt 00:00:12] [%clk 00:02:13]} 21. Kg2 {[%emt 00:00:08] [%clk 00:01:50]} Qf6
{[%emt 00:00:11] [%clk 00:02:04]} 22. Be4 {[%emt 00:00:01] [%clk 00:01:51]} Rad8
{[%emt 00:00:09] [%clk 00:01:57]} 23. Qc2 {[%emt 00:00:06] [%clk 00:01:47]} Kh8
{[%emt 00:00:06] [%clk 00:01:53]} 24. Ne5 {[%emt 00:00:04] [%clk 00:01:45]} Bg6
{[%emt 00:00:55] [%clk 00:01:00]} 25. Bxg6 {[%emt 00:00:02] [%clk 00:01:45]}
hxg6 {[%emt 00:00:01] [%clk 00:01:01]} 26. Rab1 {[%emt 00:00:01] [%clk
00:01:46]} Qe7 {[%emt 00:00:09] [%clk 00:00:55]} 27. Qxg6 {[%emt 00:00:14] [%clk
00:01:34]} Bd2 {[%clk 00:00:56]} 28. Qh5+ {[%emt 00:00:09] [%clk 00:01:26]} Kg8
{[%emt 00:00:01] [%clk 00:00:57]} 29. Re4 {[%emt 00:00:01] [%clk 00:01:27]} Qf6
{[%emt 00:00:50] [%clk 00:00:10]} 30. Rh4 {[%emt 00:00:05] [%clk 00:01:22]} Bh6
{[%emt 00:00:05] [%clk 00:00:08]} 31. Rxb7 {[%emt 00:00:03] [%clk 00:01:22]} Rb8
{[%emt 00:00:03] [%clk 00:00:07]} 32. Rxb8 {[%emt 00:00:07] [%clk 00:01:16]}
Rxb8 {[%emt 00:00:01] [%clk 00:00:08]} 33. Nd7 {[%emt 00:00:02] [%clk 00:01:16]}
Qd8 {[%emt 00:00:01] [%clk 00:00:10]} 34. Nxb8 {[%emt 00:00:01] [%clk 00:01:17]}
Qxb8 {[%clk 00:00:11]} 35. Qf3 {[%emt 00:00:04] [%clk 00:01:15]} Qb5 {[%emt
00:00:01] [%clk 00:00:13]} 36. Re4 {[%emt 00:00:03] [%clk 00:01:13]} Bd2 {[%emt
00:00:01] [%clk 00:00:14]} 37. Re5 {[%emt 00:00:27] [%clk 00:00:48]} a5 {[%emt
00:00:01] [%clk 00:00:16]} 38. h4 {[%emt 00:00:01] [%clk 00:00:49]} a4 {[%clk
00:00:17]} 39. h5 {[%clk 00:00:49]} Qb3 {[%emt 00:00:01] [%clk 00:00:19]} 40.
Qxc6 {[%emt 00:00:01] [%clk 00:00:50]} Qxa3 {[%emt 00:00:08] [%clk 00:00:14]}
41. Qe8+ {[%emt 00:00:01] [%clk 00:00:51]} Kh7 {[%clk 00:00:15]} 42. Qxf7 {[%emt
00:00:01] [%clk 00:00:52]} Qb3 {[%emt 00:00:07] [%clk 00:00:10]} 43. Rxe6 {[%emt
00:00:08] [%clk 00:00:45]} Qd5+ {[%emt 00:00:02] [%clk 00:00:10]} 44. f3 {[%clk
00:00:46]} Qa2 {[%emt 00:00:08] [%clk 00:00:05]} 45. Qf5+ {[%emt 00:00:02] [%clk
00:00:45]} Kg8 {[%emt 00:00:02] [%clk 00:00:05]} 46. Re8# {[%emt 00:00:02] [%clk
00:00:45]} 1-0

[Site "Europe Echecs"]

[Event "Championnat d'Europe de Blitz"]
[Date "2024.12.09"]
[White "Pultinevicius, Paulius"]
[Black "Koelle, Tobias"]
[WhiteElo "2579"]
[BlackElo "2437"]
[Round "6.8"]
[Result "0-1"]
[TimeControl "180+2"]

1. c4 {[%emt 00:18:40] [%clk 00:03:03]} e6 {[%clk 00:03:03]} 2. Nf3 {[%emt
00:00:04] [%clk 00:03:02]} d5 {[%clk 00:03:04]} 3. e3 {[%emt 00:00:01] [%clk
00:03:03]} Nf6 {[%emt 00:00:02] [%clk 00:03:05]} 4. Nc3 {[%emt 00:00:02] [%clk
00:03:03]} Bd6 {[%emt 00:00:05] [%clk 00:03:02]} 5. b3 {[%emt 00:00:02] [%clk
00:03:03]} O-O {[%emt 00:00:03] [%clk 00:03:01]} 6. Bb2 {[%emt 00:00:01] [%clk
00:03:04]} c5 {[%clk 00:03:02]} 7. cxd5 {[%emt 00:00:08] [%clk 00:02:57]} exd5
{[%emt 00:00:02] [%clk 00:03:02]} 8. d4 {[%emt 00:00:01] [%clk 00:02:58]} Nc6
{[%emt 00:00:02] [%clk 00:03:03]} 9. Be2 {[%emt 00:00:10] [%clk 00:02:50]} cxd4
{[%emt 00:00:01] [%clk 00:03:04]} 10. Nxd4 {[%emt 00:00:03] [%clk 00:02:49]} Re8
{[%emt 00:00:01] [%clk 00:03:04]} 11. Nf3 {[%emt 00:00:02] [%clk 00:02:49]} Bc7
{[%emt 00:00:05] [%clk 00:03:02]} 12. O-O {[%emt 00:00:06] [%clk 00:02:45]} a6
{[%emt 00:00:01] [%clk 00:03:04]} 13. Rc1 {[%emt 00:00:19] [%clk 00:02:27]} Qd6
{[%clk 00:03:05]} 14. g3 {[%emt 00:00:01] [%clk 00:02:28]} Bh3 {[%emt 00:00:02]
[%clk 00:03:05]} 15. Re1 {[%emt 00:00:01] [%clk 00:02:29]} Rad8 {[%clk
00:03:06]} 16. Na4 {[%emt 00:00:03] [%clk 00:02:28]} Ne4 {[%emt 00:00:05] [%clk
00:03:03]} 17. Nd2 {[%emt 00:00:18] [%clk 00:02:12]} Qh6 {[%emt 00:00:07] [%clk
00:02:58]} 18. Nxe4 {[%emt 00:00:12] [%clk 00:02:02]} dxe4 {[%emt 00:00:01]
[%clk 00:02:59]} 19. Qc2 {[%emt 00:00:02] [%clk 00:02:02]} Be5 {[%clk 00:03:00]}
20. Bxe5 {[%emt 00:00:13] [%clk 00:01:51]} Nxe5 {[%clk 00:03:01]} 21. Nc5 {[%emt
00:00:54] [%clk 00:00:59]} Nf3+ {[%emt 00:00:25] [%clk 00:02:38]} 22. Bxf3
{[%emt 00:00:02] [%clk 00:00:59]} exf3 {[%emt 00:00:01] [%clk 00:02:39]} 23.
Nxb7 {[%emt 00:00:09] [%clk 00:00:51]} Bc8 {[%emt 00:00:05] [%clk 00:02:36]} 24.
Kh1 {[%emt 00:00:21] [%clk 00:00:32]} Bxb7 {[%emt 00:00:02] [%clk 00:02:36]} 25.
Qc7 {[%clk 00:00:34]} Qh3 {[%emt 00:00:08] [%clk 00:02:30]} 26. Rg1 {[%emt
00:00:01] [%clk 00:00:35]} Rc8 {[%emt 00:00:06] [%clk 00:02:25]} 0-1

[Site "Europe Echecs"]

[Event "Championnat d'Europe de Blitz"]
[Date "2024.12.09"]
[White "Zajic, Milan"]
[Black "Fedoseev, Vladimir"]
[WhiteElo "2392"]
[BlackElo "2709"]
[Round "6.9"]
[Result "0-1"]
[TimeControl "180+2"]

1. e4 {[%clk 00:03:03]} c5 {[%emt 00:00:03] [%clk 00:03:02]} 2. Nf3 {[%emt
00:00:01] [%clk 00:03:04]} Nc6 {[%emt 00:00:01] [%clk 00:03:03]} 3. Bb5 {[%emt
00:00:01] [%clk 00:03:05]} g6 {[%emt 00:00:01] [%clk 00:03:04]} 4. O-O {[%emt
00:00:02] [%clk 00:03:05]} Bg7 {[%clk 00:03:05]} 5. Re1 {[%emt 00:00:02] [%clk
00:03:05]} Nf6 {[%emt 00:00:08] [%clk 00:02:58]} 6. c3 {[%emt 00:00:02] [%clk
00:03:06]} O-O {[%emt 00:00:03] [%clk 00:02:56]} 7. d4 {[%emt 00:00:02] [%clk
00:03:07]} Qb6 {[%emt 00:00:06] [%clk 00:02:52]} 8. Ba4 {[%emt 00:01:00] [%clk
00:02:09]} d5 {[%emt 00:00:12] [%clk 00:02:42]} 9. e5 {[%emt 00:00:08] [%clk
00:02:02]} Ne4 {[%emt 00:00:05] [%clk 00:02:39]} 10. h3 {[%emt 00:00:03] [%clk
00:02:01]} cxd4 {[%emt 00:00:11] [%clk 00:02:30]} 11. cxd4 {[%emt 00:00:08]
[%clk 00:01:55]} Bf5 {[%emt 00:00:28] [%clk 00:02:04]} 12. Nc3 {[%emt 00:00:02]
[%clk 00:01:56]} Rfd8 {[%emt 00:00:15] [%clk 00:01:50]} 13. Bb3 {[%emt 00:00:02]
[%clk 00:01:57]} Nxc3 {[%emt 00:00:09] [%clk 00:01:43]} 14. bxc3 {[%emt
00:00:01] [%clk 00:01:58]} Na5 {[%emt 00:00:03] [%clk 00:01:42]} 15. Ba3 {[%emt
00:00:04] [%clk 00:01:55]} Qc7 {[%emt 00:00:06] [%clk 00:01:38]} 16. Rc1 {[%emt
00:00:23] [%clk 00:01:35]} Bh6 {[%emt 00:00:01] [%clk 00:01:39]} 17. Nd2 {[%emt
00:00:43] [%clk 00:00:54]} Rac8 {[%clk 00:01:40]} 18. Qe2 {[%emt 00:00:02] [%clk
00:00:55]} b5 {[%clk 00:01:41]} 19. Rcd1 {[%emt 00:00:11] [%clk 00:00:46]} Qxc3
{[%emt 00:00:16] [%clk 00:01:28]} 20. Bxe7 {[%emt 00:00:03] [%clk 00:00:45]} Bd3
{[%emt 00:00:14] [%clk 00:01:16]} 21. Qf3 {[%emt 00:00:20] [%clk 00:00:27]} Bxd2
{[%emt 00:00:01] [%clk 00:01:17]} 22. Bxd8 {[%emt 00:00:05] [%clk 00:00:24]}
Nxb3 {[%emt 00:00:03] [%clk 00:01:16]} 23. axb3 {[%emt 00:00:08] [%clk
00:00:18]} Rxd8 {[%emt 00:00:25] [%clk 00:00:52]} 24. Rxd2 {[%emt 00:00:09]
[%clk 00:00:12]} Qxd2 {[%emt 00:00:03] [%clk 00:00:51]} 25. Rd1 {[%emt 00:00:01]
[%clk 00:00:13]} Be2 {[%emt 00:00:08] [%clk 00:00:45]} 26. Rxd2 {[%emt 00:00:01]
[%clk 00:00:13]} Bxf3 {[%clk 00:00:46]} 27. gxf3 {[%clk 00:00:14]} a5 {[%clk
00:00:47]} 28. Ra2 {[%emt 00:00:12] [%clk 00:00:04]} Ra8 {[%clk 00:00:48]} 29.
Kf1 {[%emt 00:00:03] [%clk 00:00:03]} Kg7 {[%emt 00:00:04] [%clk 00:00:46]} 30.
Ke2 {[%emt 00:00:02] [%clk 00:00:04]} Kh6 {[%clk 00:00:47]} 31. f4 {[%emt
00:00:02] [%clk 00:00:04]} a4 {[%emt 00:00:06] [%clk 00:00:43]} 32. Ra3 {[%emt
00:00:01] [%clk 00:00:06]} Kh5 {[%emt 00:00:04] [%clk 00:00:41]} 33. Kf3 {[%emt
00:00:03] [%clk 00:00:05]} b4 {[%emt 00:00:02] [%clk 00:00:41]} 0-1

[Site "Europe Echecs"]

[Event "Championnat d'Europe de Blitz"]
[Date "2024.12.09"]
[White "Costachi, Mihnea"]
[Black "Mamedov, Rauf"]
[WhiteElo "2464"]
[BlackElo "2656"]
[Round "6.10"]
[Result "0-1"]
[TimeControl "180+2"]

1. d4 {[%clk 00:03:03]} d5 {[%emt 00:00:01] [%clk 00:03:04]} 2. c4 {[%emt
00:00:01] [%clk 00:03:04]} e6 {[%clk 00:03:05]} 3. Nc3 {[%clk 00:03:05]} c5
{[%emt 00:00:01] [%clk 00:03:06]} 4. cxd5 {[%emt 00:00:02] [%clk 00:03:04]} cxd4
{[%clk 00:03:08]} 5. Qa4+ {[%emt 00:00:02] [%clk 00:03:04]} Bd7 {[%clk
00:03:09]} 6. Qxd4 {[%emt 00:00:01] [%clk 00:03:05]} exd5 {[%clk 00:03:10]} 7.
Qxd5 {[%emt 00:00:05] [%clk 00:03:02]} Nf6 {[%emt 00:00:01] [%clk 00:03:12]} 8.
Qb3 {[%emt 00:00:02] [%clk 00:03:02]} Na6 {[%emt 00:00:01] [%clk 00:03:13]} 9.
Nf3 {[%emt 00:00:08] [%clk 00:02:56]} Nc5 {[%emt 00:00:01] [%clk 00:03:14]} 10.
Qd1 {[%emt 00:00:20] [%clk 00:02:38]} Nce4 {[%emt 00:00:17] [%clk 00:03:00]} 11.
e3 {[%emt 00:00:12] [%clk 00:02:28]} Qa5 {[%emt 00:00:09] [%clk 00:02:52]} 12.
Bd2 {[%emt 00:00:19] [%clk 00:02:11]} Nxd2 {[%emt 00:00:01] [%clk 00:02:53]} 13.
Qxd2 {[%emt 00:00:07] [%clk 00:02:06]} Bb4 {[%emt 00:00:02] [%clk 00:02:54]} 14.
Bd3 {[%emt 00:00:26] [%clk 00:01:41]} Rc8 {[%emt 00:00:23] [%clk 00:02:33]} 15.
O-O {[%emt 00:00:06] [%clk 00:01:37]} Bxc3 {[%emt 00:00:02] [%clk 00:02:32]} 16.
bxc3 {[%clk 00:01:38]} Qxc3 {[%clk 00:02:34]} 17. Rfc1 {[%emt 00:00:18] [%clk
00:01:22]} Qxd2 {[%clk 00:02:35]} 18. Rxc8+ {[%emt 00:00:04] [%clk 00:01:20]}
Ke7 {[%emt 00:00:15] [%clk 00:02:22]} 19. Nxd2 {[%emt 00:00:05] [%clk 00:01:17]}
Rxc8 {[%clk 00:02:23]} 20. Kf1 {[%emt 00:00:07] [%clk 00:01:12]} Be6 {[%emt
00:00:11] [%clk 00:02:14]} 21. Ke2 {[%emt 00:00:09] [%clk 00:01:05]} Nd5 {[%clk
00:02:16]} 22. Kf3 {[%emt 00:00:15] [%clk 00:00:53]} b6 {[%emt 00:00:27] [%clk
00:01:51]} 23. a4 {[%emt 00:00:03] [%clk 00:00:51]} a5 {[%emt 00:00:02] [%clk
00:01:51]} 24. Bc4 {[%emt 00:00:17] [%clk 00:00:37]} Nb4 {[%emt 00:00:15] [%clk
00:01:37]} 25. Bxe6 {[%emt 00:00:01] [%clk 00:00:37]} Kxe6 {[%clk 00:01:38]} 26.
Nb3 {[%emt 00:00:02] [%clk 00:00:37]} Rc3 {[%emt 00:00:24] [%clk 00:01:16]} 27.
Nd4+ {[%emt 00:00:02] [%clk 00:00:38]} Kf6 {[%clk 00:01:17]} 28. g4 {[%emt
00:00:11] [%clk 00:00:30]} g6 {[%emt 00:00:04] [%clk 00:01:15]} 29. h4 {[%clk
00:00:30]} h6 {[%clk 00:01:17]} 30. Nb5 {[%emt 00:00:09] [%clk 00:00:23]} Rc2
{[%emt 00:00:04] [%clk 00:01:13]} 31. Rd1 {[%emt 00:00:03] [%clk 00:00:24]} Ra2
{[%emt 00:00:04] [%clk 00:01:11]} 32. Nc3 {[%emt 00:00:08] [%clk 00:00:18]} Ra3
{[%emt 00:00:06] [%clk 00:01:06]} 33. Nd5+ {[%emt 00:00:02] [%clk 00:00:19]}
Nxd5 {[%emt 00:00:03] [%clk 00:01:05]} 34. Rxd5 {[%clk 00:00:20]} Rb3 {[%clk
00:01:06]} 35. Rd7 {[%emt 00:00:10] [%clk 00:00:13]} Rb4 {[%emt 00:00:03] [%clk
00:01:05]} 36. Rb7 {[%emt 00:00:01] [%clk 00:00:14]} h5 {[%clk 00:01:06]} 37.
gxh5 {[%emt 00:00:07] [%clk 00:00:08]} gxh5 {[%emt 00:00:02] [%clk 00:01:07]}
38. e4 {[%clk 00:00:10]} Ke6 {[%emt 00:00:03] [%clk 00:01:05]} 39. Ke3 {[%emt
00:00:03] [%clk 00:00:08]} f5 {[%emt 00:00:01] [%clk 00:01:07]} 40. f3 {[%emt
00:00:04] [%clk 00:00:06]} fxe4 {[%clk 00:01:08]} 41. fxe4 {[%emt 00:00:01]
[%clk 00:00:07]} Ke5 {[%clk 00:01:09]} 42. Re7+ {[%emt 00:00:01] [%clk
00:00:08]} Kd6 {[%clk 00:01:11]} 43. Rh7 {[%emt 00:00:03] [%clk 00:00:07]} Rxa4
{[%clk 00:01:12]} 44. Rxh5 {[%emt 00:00:01] [%clk 00:00:08]} Ra1 {[%clk
00:01:14]} 45. Rh7 {[%emt 00:00:03] [%clk 00:00:06]} a4 {[%emt 00:00:02] [%clk
00:01:15]} 46. Kd4 {[%emt 00:00:03] [%clk 00:00:06]} b5 {[%emt 00:00:11] [%clk
00:01:05]} 47. Rh6+ {[%clk 00:00:07]} Kc7 {[%clk 00:01:07]} 48. Kc5 {[%clk
00:00:08]} a3 {[%emt 00:00:03] [%clk 00:01:06]} 49. Ra6 {[%emt 00:00:06] [%clk
00:00:04]} a2 {[%clk 00:01:07]} 50. Ra7+ {[%clk 00:00:06]} Kd8 {[%emt 00:00:07]
[%clk 00:01:03]} 51. Kb6 {[%emt 00:00:04] [%clk 00:00:04]} b4 {[%clk 00:01:04]}
52. h5 {[%emt 00:00:03] [%clk 00:00:03]} b3 {[%clk 00:01:06]} 53. h6 {[%clk
00:00:05]} Rh1 {[%emt 00:00:01] [%clk 00:01:06]} 54. Ra8+ {[%emt 00:00:02] [%clk
00:00:05]} Ke7 {[%emt 00:00:01] [%clk 00:01:07]} 55. h7 {[%clk 00:00:06]} Rxh7
{[%emt 00:00:02] [%clk 00:01:07]} 56. Ra7+ {[%emt 00:00:01] [%clk 00:00:07]} Ke6
{[%clk 00:01:08]} 57. Rxh7 {[%clk 00:00:08]} a1=Q {[%emt 00:00:02] [%clk
00:01:09]} 0-1

[Site "Europe Echecs"]

[Event "Championnat d'Europe de Blitz"]
[Date "2024.12.09"]
[White "Boyer, Mahel"]
[Black "Fressinet, Laurent"]
[WhiteElo "2526"]
[BlackElo "2588"]
[Round "6.11"]
[Result "0-1"]
[TimeControl "180+2"]

1. e4 {[%emt 00:06:02] [%clk 00:03:03]} e5 {[%clk 00:03:04]} 2. Nf3 {[%emt
00:00:02] [%clk 00:03:03]} Nc6 {[%clk 00:03:05]} 3. Nc3 {[%emt 00:00:02] [%clk
00:03:04]} Nf6 {[%emt 00:00:02] [%clk 00:03:04]} 4. Nd5 {[%emt 00:00:01] [%clk
00:03:05]} Be7 {[%emt 00:00:03] [%clk 00:03:03]} 5. Bd3 {[%emt 00:00:04] [%clk
00:03:04]} O-O {[%emt 00:00:07] [%clk 00:02:58]} 6. c3 {[%emt 00:00:01] [%clk
00:03:04]} d6 {[%emt 00:00:06] [%clk 00:02:54]} 7. Bc2 {[%emt 00:00:29] [%clk
00:02:38]} Be6 {[%emt 00:00:09] [%clk 00:02:46]} 8. Nxe7+ {[%emt 00:00:05] [%clk
00:02:35]} Qxe7 {[%emt 00:00:01] [%clk 00:02:47]} 9. O-O {[%emt 00:00:08] [%clk
00:02:29]} d5 {[%emt 00:00:02] [%clk 00:02:48]} 10. d4 {[%emt 00:00:03] [%clk
00:02:27]} Nxe4 {[%emt 00:00:08] [%clk 00:02:42]} 11. dxe5 {[%emt 00:00:13]
[%clk 00:02:16]} Rad8 {[%emt 00:00:12] [%clk 00:02:32]} 12. Nd4 {[%emt 00:00:01]
[%clk 00:02:17]} Nxd4 {[%emt 00:00:18] [%clk 00:02:16]} 13. cxd4 {[%emt
00:00:05] [%clk 00:02:15]} f5 {[%clk 00:02:17]} 14. f3 {[%emt 00:00:38] [%clk
00:01:43]} Ng5 {[%clk 00:02:18]} 15. Be3 {[%clk 00:01:43]} f4 {[%emt 00:00:09]
[%clk 00:02:10]} 16. Bf2 {[%emt 00:00:01] [%clk 00:01:44]} Bf5 {[%clk 00:02:12]}
17. Bb3 {[%emt 00:00:10] [%clk 00:01:36]} Ne6 {[%emt 00:00:10] [%clk 00:02:03]}
18. Rc1 {[%emt 00:00:01] [%clk 00:01:37]} c6 {[%emt 00:00:02] [%clk 00:02:04]}
19. Qd2 {[%emt 00:00:04] [%clk 00:01:34]} Kh8 {[%emt 00:00:07] [%clk 00:01:59]}
20. g4 {[%emt 00:00:11] [%clk 00:01:25]} fxg3 {[%emt 00:00:10] [%clk 00:01:51]}
21. hxg3 {[%emt 00:00:02] [%clk 00:01:26]} Bh3 {[%emt 00:00:06] [%clk 00:01:47]}
22. f4 {[%emt 00:00:21] [%clk 00:01:06]} g5 {[%emt 00:00:01] [%clk 00:01:48]}
23. Rfe1 {[%emt 00:00:45] [%clk 00:00:24]} gxf4 {[%emt 00:00:02] [%clk
00:01:48]} 24. Kh2 {[%emt 00:00:01] [%clk 00:00:24]} Bg4 {[%emt 00:00:19] [%clk
00:01:31]} 25. Rc3 {[%emt 00:00:02] [%clk 00:00:25]} Qf7 {[%emt 00:00:15] [%clk
00:01:18]} 26. Kg2 {[%emt 00:00:23] [%clk 00:00:04]} f3+ {[%emt 00:00:42] [%clk
00:00:37]} 27. Kg1 {[%emt 00:00:01] [%clk 00:00:05]} Qh5 {[%clk 00:00:39]} 28.
Qd3 {[%clk 00:00:06]} Ng5 {[%emt 00:00:03] [%clk 00:00:38]} 29. Rc2 {[%emt
00:00:04] [%clk 00:00:04]} Nh3+ {[%emt 00:00:04] [%clk 00:00:36]} 30. Kf1 {[%clk
00:00:05]} Nxf2 {[%emt 00:00:04] [%clk 00:00:35]} 31. Kxf2 {[%clk 00:00:06]}
Qh2+ {[%emt 00:00:01] [%clk 00:00:36]} 32. Ke3 {[%emt 00:00:05] [%clk 00:00:04]}
f2 {[%emt 00:00:01] [%clk 00:00:37]} 0-1

[Site "Europe Echecs"]